fUSD/lending_fUSD_20260625
["ID","MTS","AMOUNT","RATE_DAILY","PERIOD"]
[426398837,1782348631000,-156.3,0.00011016,2]
[426398831,1782348631000,-237.01373604,0.00010882,2]
[426398847,1782348631000,-366.98547967,0.00011155,2]
[426398851,1782348631000,-500.0,0.00011155,2]
[426398881,1782348631000,-216.42324807,0.00011464,2]
[426398883,1782348631000,-166.66,0.00011573,2]
[426398879,1782348631000,-250.0,0.00011452,2]
[426398849,1782348631000,-500.0,0.00011155,2]
[426398870,1782348631000,-1497.91,0.00011281,2]
[426398873,1782348631000,-166.66,0.00011368,2]
[426398875,1782348631000,-162.49,0.00011379,2]
[426398877,1782348631000,-288.94,0.00011444,2]
[426398862,1782348631000,-2573.89,0.00011157,2]
[426398864,1782348631000,-166.66,0.00011164,2]
[426398866,1782348631000,-288.94,0.00011164,2]
[426398859,1782348631000,-500.0,0.00011155,2]
[426398857,1782348631000,-500.0,0.00011155,2]
[426398855,1782348631000,-237.98600912,0.00011155,2]
[426398853,1782348631000,-500.0,0.00011155,2]
[426398868,1782348631000,-7676.91,0.00011281,2]
[426398892,1782348632000,-288.94,0.00011723,2]
[426398889,1782348632000,-151.0,0.0001166,2]
[426398885,1782348632000,-310.23,0.00011616,2]
[426398888,1782348632000,-151.0,0.00011659,2]
[426398887,1782348632000,-159.27,0.00011659,2]
[426398891,1782348632000,-150.0,0.00011684,2]
[426398890,1782348632000,-150.0,0.00011665,2]
[426398893,1782348632000,-165.57,0.00011763,2]
[426398903,1782348632000,-1715.61645723,0.00011887,2]
[426398896,1782348632000,-150.0,0.00011778,2]
[426398897,1782348632000,-892.02228418,0.00011887,2]
[426398899,1782348632000,-152.0,0.00011887,2]
[426398895,1782348632000,-166.66,0.00011778,2]
[426398900,1782348632000,-152.0,0.00011887,2]
[426398898,1782348632000,-44671.50250468,0.00011887,2]
[426398901,1782348632000,-152.0,0.00011887,2]
[426398902,1782348632000,-691.89909591,0.00011887,2]
[426398894,1782348632000,-152.0,0.00011763,2]
[426398912,1782348637000,-165.0,0.00011987,2]
[426398910,1782348637000,-500.0,0.00011887,2]
[426398913,1782348637000,-166.66558417,0.00011987,2]
[426398907,1782348637000,-152.0,0.00011887,2]
[426398908,1782348637000,-152.0,0.00011887,2]
[426398914,1782348637000,-1500000.0,0.00011987,2]
[426398906,1782348637000,-33810.92932877,0.00011887,2]
[426398915,1782348637000,-152.0,0.00011987,2]
[426398911,1782348637000,-166.66,0.00011982,2]
[426398916,1782348637000,-152.0,0.00011987,2]
[426398909,1782348637000,-152.0,0.00011887,2]
[426398921,1782348637000,-288.94,0.00012002,2]
[426398917,1782348637000,-1158.6829,0.00011987,2]
[426398926,1782348637000,-299.99,0.00012087,2]
[426398925,1782348637000,-999.99,0.00012087,2]
[426398927,1782348637000,-150.99,0.00012087,2]
[426398923,1782348637000,-22175.58,0.00012087,2]
[426398928,1782348637000,-152.0,0.00012087,2]
[426398918,1782348637000,-152.0,0.00011987,2]
[426398924,1782348637000,-5695.57,0.00012087,2]
[426398920,1782348637000,-6830.8209,0.00011991,2]
[426398919,1782348637000,-152.0,0.00011987,2]
[426398922,1782348637000,-9559.05,0.00012087,2]
[426398969,1782348638000,-1000.0,0.0001209,2]
[426398964,1782348638000,-1000.0,0.0001209,2]
[426398963,1782348638000,-1000.0,0.0001209,2]
[426398984,1782348638000,-315.0,0.0001209,2]
[426398966,1782348638000,-1000.0,0.0001209,2]
[426398962,1782348638000,-1000.0,0.0001209,2]
[426398959,1782348638000,-1000.0,0.0001209,2]
[426398960,1782348638000,-1000.0,0.0001209,2]
[426398968,1782348638000,-1000.0,0.0001209,2]
[426398958,1782348638000,-1000.0,0.0001209,2]
[426398967,1782348638000,-1000.0,0.0001209,2]
[426398961,1782348638000,-1000.0,0.0001209,2]
[426398973,1782348638000,-1000.0,0.0001209,2]
[426398970,1782348638000,-1000.0,0.0001209,2]
[426398972,1782348638000,-1000.0,0.0001209,2]
[426398971,1782348638000,-1000.0,0.0001209,2]
[426398974,1782348638000,-1000.0,0.0001209,2]
[426398975,1782348638000,-1000.0,0.0001209,2]
[426398976,1782348638000,-1000.0,0.0001209,2]
[426398977,1782348638000,-151.0,0.0001209,2]
[426398978,1782348638000,-321.0,0.0001209,2]
[426398980,1782348638000,-151.0,0.0001209,2]
[426398979,1782348638000,-320.0,0.0001209,2]
[426398981,1782348638000,-312.0,0.0001209,2]
[426398956,1782348638000,-1000.0,0.0001209,2]
[426398965,1782348638000,-1000.0,0.0001209,2]
[426398957,1782348638000,-1000.0,0.0001209,2]
[426398940,1782348638000,-165.76,0.00012087,2]
[426398955,1782348638000,-1000.0,0.0001209,2]
[426398986,1782348638000,-150.0,0.0001209,2]
[426398929,1782348638000,-152.0,0.00012087,2]
[426398930,1782348638000,-152.0,0.00012087,2]
[426398935,1782348638000,-152.0,0.00012087,2]
[426398932,1782348638000,-152.0,0.00012087,2]
[426398934,1782348638000,-152.0,0.00012087,2]
[426398933,1782348638000,-152.0,0.00012087,2]
[426398931,1782348638000,-152.0,0.00012087,2]
[426398936,1782348638000,-268.0,0.00012087,2]
[426398938,1782348638000,-165.76,0.00012087,2]
[426398937,1782348638000,-165.76,0.00012087,2]
[426398939,1782348638000,-165.76,0.00012087,2]
[426398941,1782348638000,-165.76,0.00012087,2]
[426398944,1782348638000,-165.76,0.00012087,2]
[426398942,1782348638000,-165.76,0.00012087,2]
[426398943,1782348638000,-165.76,0.00012087,2]
[426398945,1782348638000,-165.76,0.00012087,2]
[426398946,1782348638000,-165.76,0.00012087,2]
[426398947,1782348638000,-152.0,0.00012087,2]
[426398949,1782348638000,-152.0,0.00012087,2]
[426398948,1782348638000,-152.0,0.00012087,2]
[426398950,1782348638000,-254.4,0.00012087,2]
[426398951,1782348638000,-152.0,0.00012087,2]
[426398954,1782348638000,-1000.0,0.0001209,2]
[426398952,1782348638000,-152.0,0.00012087,2]
[426398953,1782348638000,-296.0,0.00012087,2]
[426398983,1782348638000,-314.0,0.0001209,2]
[426399022,1782348638000,-319.0,0.0001236,2]
[426398988,1782348638000,-150.0,0.0001209,2]
[426399020,1782348638000,-320.0,0.00012311,2]
[426399019,1782348638000,-288.94,0.00012281,2]
[426399021,1782348638000,-182.82,0.00012329,2]
[426399023,1782348638000,-1172.34,0.00012378,2]
[426399024,1782348638000,-500.0,0.00012435,2]
[426399028,1782348638000,-151.5856622,0.00012574,2]
[426399027,1782348638000,-44671.50250463,0.00012557,2]
[426399025,1782348638000,-1000.0,0.000125,4]
[426399026,1782348638000,-2500.0,0.000125,2]
[426399029,1782348638000,-277.00016945,0.00012574,2]
[426399030,1782348638000,-633.14324449,0.00012574,2]
[426399031,1782348638000,-43799.28209424,0.00012584,2]
[426399035,1782348638000,-3419.5327606,0.00012693,2]
[426399033,1782348638000,-10787.19483269,0.00012693,2]
[426399036,1782348638000,-2721.1101676,0.00012693,2]
[426399034,1782348638000,-526.25865039,0.00012693,2]
[426399039,1782348638000,-500.0,0.00012709,2]
[426399041,1782348638000,-321.0,0.00012793,2]
[426399038,1782348638000,-3100.0,0.000127,4]
[426399037,1782348638000,-272.01877318,0.00012693,2]
[426399040,1782348638000,-10694.0,0.00012767,2]
[426399043,1782348638000,-150.0,0.00012793,2]
[426399042,1782348638000,-320.0,0.00012793,2]
[426399044,1782348638000,-316.0,0.00012793,2]
[426398987,1782348638000,-320.0,0.0001209,2]
[426399018,1782348638000,-35526.54578598,0.00012222,2]
[426399012,1782348638000,-151.0,0.00012091,2]
[426399032,1782348638000,-2100.0,0.000126,4]
[426399015,1782348638000,-317.0,0.00012131,2]
[426398992,1782348638000,-313.0,0.0001209,2]
[426399014,1782348638000,-156.3,0.00012118,2]
[426398989,1782348638000,-312.0,0.0001209,2]
[426398994,1782348638000,-320.0,0.00012091,2]
[426398995,1782348638000,-317.0,0.00012091,2]
[426398991,1782348638000,-150.0,0.0001209,2]
[426398993,1782348638000,-320.0,0.00012091,2]
[426398990,1782348638000,-320.0,0.0001209,2]
[426398996,1782348638000,-151.0,0.00012091,2]
[426398997,1782348638000,-311.0,0.00012091,2]
[426399000,1782348638000,-321.0,0.00012091,2]
[426399001,1782348638000,-150.0,0.00012091,2]
[426399003,1782348638000,-321.0,0.00012091,2]
[426398998,1782348638000,-151.0,0.00012091,2]
[426399013,1782348638000,-160.0,0.00012108,2]
[426399017,1782348638000,-44671.50250463,0.00012222,2]
[426398999,1782348638000,-316.0,0.00012091,2]
[426399016,1782348638000,-500.0,0.00012161,2]
[426399011,1782348638000,-317.0,0.00012091,2]
[426399009,1782348638000,-309.0,0.00012091,2]
[426399008,1782348638000,-151.0,0.00012091,2]
[426399010,1782348638000,-312.0,0.00012091,2]
[426399005,1782348638000,-150.0,0.00012091,2]
[426399006,1782348638000,-314.0,0.00012091,2]
[426399004,1782348638000,-313.0,0.00012091,2]
[426399002,1782348638000,-319.0,0.00012091,2]
[426399007,1782348638000,-318.0,0.00012091,2]
[426399088,1782348639000,-150.0,0.00013425,2]
[426399085,1782348639000,-150.0,0.00013407,2]
[426399083,1782348639000,-150.0,0.00013389,2]
[426399084,1782348639000,-150.0,0.00013406,2]
[426399080,1782348639000,-150.0,0.00013389,2]
[426399075,1782348639000,-150.0,0.00013389,2]
[426399077,1782348639000,-150.0,0.00013389,2]
[426399079,1782348639000,-150.0,0.00013389,2]
[426399078,1782348639000,-150.0,0.00013389,2]
[426399073,1782348639000,-150.0,0.00013389,2]
[426399086,1782348639000,-150.0,0.00013421,2]
[426399081,1782348639000,-150.0,0.00013389,2]
[426399082,1782348639000,-150.0,0.00013389,2]
[426399099,1782348639000,-150.0,0.00013477,2]
[426399091,1782348639000,-150.0,0.0001344,2]
[426399090,1782348639000,-150.0,0.0001344,2]
[426399089,1782348639000,-150.0,0.00013426,2]
[426399093,1782348639000,-150.0,0.00013452,2]
[426399092,1782348639000,-150.0,0.00013444,2]
[426399095,1782348639000,-150.0,0.00013457,2]
[426399094,1782348639000,-150.0,0.00013457,2]
[426399096,1782348639000,-150.0,0.00013462,2]
[426399097,1782348639000,-150.0,0.00013463,2]
[426399098,1782348639000,-150.0,0.00013474,2]
[426399101,1782348639000,-150.0,0.00013484,2]
[426399074,1782348639000,-226.66136262,0.00013389,2]
[426399087,1782348639000,-150.0,0.00013423,2]
[426399071,1782348639000,-150.0,0.00013389,2]
[426399049,1782348639000,-4200.0,0.000128,4]
[426399072,1782348639000,-150.0,0.00013389,2]
[426399046,1782348639000,-318.0,0.00012793,2]
[426399048,1782348639000,-315.0,0.00012793,2]
[426399047,1782348639000,-152.0,0.00012793,2]
[426399100,1782348639000,-150.0,0.00013481,2]
[426399050,1782348639000,-182.14,0.00012812,2]
[426399053,1782348639000,-5300.0,0.000129,4]
[426399051,1782348639000,-255.0,0.00012849,2]
[426399045,1782348639000,-310.0,0.00012793,2]
[426399052,1782348639000,-44671.50250463,0.00012891,2]
[426399055,1782348639000,-500.0,0.00012983,2]
[426399056,1782348639000,-250.0,0.00012983,2]
[426399054,1782348639000,-165.851589,0.00012962,2]
[426399076,1782348639000,-150.0,0.00013389,2]
[426399057,1782348639000,-3419.53276057,0.00013008,2]
[426399058,1782348639000,-180.16152265,0.00013082,2]
[426399060,1782348639000,-517.653647,0.00013095,2]
[426399061,1782348639000,-1080.161633,0.00013095,2]
[426399064,1782348639000,-178.09185,0.00013121,2]
[426399063,1782348639000,-411.124024,0.00013121,2]
[426399062,1782348639000,-159.27,0.00013116,2]
[426399066,1782348639000,-44671.50250463,0.00013226,2]
[426399065,1782348639000,-156.3,0.0001322,2]
[426399067,1782348639000,-162.49,0.00013257,2]
[426399068,1782348639000,-3419.53276057,0.00013324,2]
[426399069,1782348639000,-892.02228416,0.0001334,2]
[426399070,1782348639000,-277.00016945,0.00013383,2]
[426399059,1782348639000,-786.584106,0.00013095,2]
[426399103,1782348639000,-150.0,0.00013492,2]
[426399157,1782348639000,-500.0,0.00013698,2]
[426399105,1782348639000,-150.0,0.00013499,2]
[426399136,1782348639000,-150.0,0.00013626,2]
[426399138,1782348639000,-3419.53276057,0.00013639,2]
[426399139,1782348639000,-150.0,0.00013642,2]
[426399137,1782348639000,-150.0,0.00013628,2]
[426399141,1782348639000,-150.0,0.00013643,2]
[426399140,1782348639000,-150.0,0.00013643,2]
[426399142,1782348639000,-150.0,0.00013646,2]
[426399145,1782348639000,-150.0,0.0001366,2]
[426399148,1782348639000,-150.0,0.00013674,2]
[426399146,1782348639000,-150.0,0.0001366,2]
[426399143,1782348639000,-150.0,0.00013646,2]
[426399144,1782348639000,-150.0,0.00013652,2]
[426399130,1782348639000,-2000.0,0.00013599,2]
[426399147,1782348639000,-150.0,0.00013665,2]
[426399149,1782348639000,-150.0,0.00013676,2]
[426399151,1782348639000,-150.0,0.00013683,2]
[426399153,1782348639000,-150.0,0.00013693,2]
[426399152,1782348639000,-150.0,0.00013687,2]
[426399154,1782348639000,-150.0,0.00013697,2]
[426399155,1782348639000,-585.64,0.00013698,2]
[426399161,1782348639000,-500.0,0.00013698,2]
[426399159,1782348639000,-500.0,0.00013698,2]
[426399158,1782348639000,-500.0,0.00013698,2]
[426399160,1782348639000,-500.0,0.00013698,2]
[426399156,1782348639000,-503.63672194,0.00013698,2]
[426399162,1782348639000,-500.0,0.00013698,2]
[426399150,1782348639000,-150.0,0.00013679,2]
[426399133,1782348639000,-150.0,0.00013609,2]
[426399102,1782348639000,-150.0,0.0001349,2]
[426399134,1782348639000,-150.0,0.00013609,2]
[426399111,1782348639000,-150.0,0.00013534,2]
[426399108,1782348639000,-150.0,0.00013518,2]
[426399104,1782348639000,-150.0,0.00013498,2]
[426399110,1782348639000,-150.0,0.00013524,2]
[426399107,1782348639000,-150.0,0.00013516,2]
[426399106,1782348639000,-150.0,0.00013507,2]
[426399109,1782348639000,-150.0,0.00013524,2]
[426399135,1782348639000,-150.0,0.00013611,2]
[426399113,1782348639000,-150.0,0.00013541,2]
[426399115,1782348639000,-150.0,0.00013547,2]
[426399114,1782348639000,-150.0,0.00013543,2]
[426399117,1782348639000,-150.0,0.00013558,2]
[426399116,1782348639000,-150.0,0.00013554,2]
[426399112,1782348639000,-150.0,0.00013536,2]
[426399124,1782348639000,-150.0,0.00013579,2]
[426399118,1782348639000,-44671.50250463,0.00013561,2]
[426399131,1782348639000,-150.0,0.00013607,2]
[426399128,1782348639000,-150.0,0.00013594,2]
[426399129,1782348639000,-33326.4581,0.00013599,2]
[426399125,1782348639000,-150.0,0.00013591,2]
[426399127,1782348639000,-150.0,0.00013592,2]
[426399132,1782348639000,-640.57,0.00013608,2]
[426399122,1782348639000,-150.0,0.00013573,2]
[426399123,1782348639000,-150.0,0.00013575,2]
[426399119,1782348639000,-819.84973374,0.00013563,2]
[426399120,1782348639000,-150.0,0.00013564,2]
[426399121,1782348639000,-150.0,0.0001357,2]
[426399126,1782348639000,-150.0,0.00013592,2]
[426399207,1782348640000,-500.0,0.00013698,2]
[426399202,1782348640000,-500.0,0.00013698,2]
[426399206,1782348640000,-500.0,0.00013698,2]
[426399199,1782348640000,-500.0,0.00013698,2]
[426399203,1782348640000,-500.0,0.00013698,2]
[426399198,1782348640000,-500.0,0.00013698,2]
[426399197,1782348640000,-500.0,0.00013698,2]
[426399194,1782348640000,-500.0,0.00013698,2]
[426399196,1782348640000,-518.89469315,0.00013698,2]
[426399193,1782348640000,-500.0,0.00013698,2]
[426399200,1782348640000,-500.0,0.00013698,2]
[426399205,1782348640000,-500.0,0.00013698,2]
[426399217,1782348640000,-500.0,0.00013698,2]
[426399201,1782348640000,-500.0,0.00013698,2]
[426399208,1782348640000,-500.0,0.00013698,2]
[426399209,1782348640000,-626.51114016,0.00013698,2]
[426399210,1782348640000,-500.0,0.00013698,2]
[426399211,1782348640000,-500.0,0.00013698,2]
[426399212,1782348640000,-500.0,0.00013698,2]
[426399213,1782348640000,-500.0,0.00013698,2]
[426399214,1782348640000,-500.0,0.00013698,2]
[426399215,1782348640000,-500.0,0.00013698,2]
[426399216,1782348640000,-500.0,0.00013698,2]
[426399221,1782348640000,-500.0,0.00013698,2]
[426399219,1782348640000,-500.0,0.00013698,2]
[426399195,1782348640000,-500.0,0.00013698,2]
[426399204,1782348640000,-500.0,0.00013698,2]
[426399192,1782348640000,-504.07105771,0.00013698,2]
[426399177,1782348640000,-542.12,0.00013698,2]
[426399191,1782348640000,-500.0,0.00013698,2]
[426399218,1782348640000,-500.0,0.00013698,2]
[426399163,1782348640000,-500.0,0.00013698,2]
[426399165,1782348640000,-500.0,0.00013698,2]
[426399166,1782348640000,-500.0,0.00013698,2]
[426399164,1782348640000,-500.0,0.00013698,2]
[426399167,1782348640000,-500.0,0.00013698,2]
[426399169,1782348640000,-500.0,0.00013698,2]
[426399170,1782348640000,-500.0,0.00013698,2]
[426399168,1782348640000,-500.0,0.00013698,2]
[426399171,1782348640000,-542.12,0.00013698,2]
[426399173,1782348640000,-542.12,0.00013698,2]
[426399172,1782348640000,-542.12,0.00013698,2]
[426399175,1782348640000,-542.12,0.00013698,2]
[426399174,1782348640000,-542.12,0.00013698,2]
[426399176,1782348640000,-542.12,0.00013698,2]
[426399178,1782348640000,-500.0,0.00013698,2]
[426399179,1782348640000,-500.0,0.00013698,2]
[426399180,1782348640000,-500.0,0.00013698,2]
[426399184,1782348640000,-500.0,0.00013698,2]
[426399181,1782348640000,-500.0,0.00013698,2]
[426399182,1782348640000,-500.0,0.00013698,2]
[426399183,1782348640000,-500.0,0.00013698,2]
[426399186,1782348640000,-500.0,0.00013698,2]
[426399185,1782348640000,-500.0,0.00013698,2]
[426399187,1782348640000,-500.0,0.00013698,2]
[426399188,1782348640000,-500.0,0.00013698,2]
[426399190,1782348640000,-500.0,0.00013698,2]
[426399189,1782348640000,-500.0,0.00013698,2]
[426399220,1782348640000,-500.0,0.00013698,2]
[426399223,1782348640000,-500.0,0.00013698,2]
[426399222,1782348640000,-500.0,0.00013698,2]
[426399253,1782348640000,-500.0,0.00013698,2]
[426399257,1782348640000,-500.0,0.00013698,2]
[426399260,1782348640000,-500.0,0.00013698,2]
[426399259,1782348640000,-500.0,0.00013698,2]
[426399261,1782348640000,-500.0,0.00013698,2]
[426399262,1782348640000,-532.63504897,0.00013698,2]
[426399265,1782348640000,-562.9,0.00013698,2]
[426399266,1782348640000,-562.9,0.00013698,2]
[426399264,1782348640000,-562.9,0.00013698,2]
[426399263,1782348640000,-562.9,0.00013698,2]
[426399269,1782348640000,-562.9,0.00013698,2]
[426399271,1782348640000,-500.0,0.00013698,2]
[426399256,1782348640000,-500.0,0.00013698,2]
[426399267,1782348640000,-562.9,0.00013698,2]
[426399270,1782348640000,-500.0,0.00013698,2]
[426399272,1782348640000,-500.0,0.00013698,2]
[426399273,1782348640000,-500.0,0.00013698,2]
[426399274,1782348640000,-500.0,0.00013698,2]
[426399275,1782348640000,-500.0,0.00013698,2]
[426399276,1782348640000,-500.0,0.00013698,2]
[426399277,1782348640000,-500.0,0.00013698,2]
[426399281,1782348640000,-500.0,0.00013698,2]
[426399282,1782348640000,-500.0,0.00013698,2]
[426399278,1782348640000,-500.0,0.00013698,2]
[426399280,1782348640000,-500.0,0.00013698,2]
[426399279,1782348640000,-500.0,0.00013698,2]
[426399268,1782348640000,-562.9,0.00013698,2]
[426399255,1782348640000,-500.0,0.00013698,2]
[426399283,1782348640000,-500.0,0.00013698,2]
[426399254,1782348640000,-500.0,0.00013698,2]
[426399225,1782348640000,-500.0,0.00013698,2]
[426399227,1782348640000,-500.0,0.00013698,2]
[426399224,1782348640000,-500.0,0.00013698,2]
[426399231,1782348640000,-500.0,0.00013698,2]
[426399229,1782348640000,-500.0,0.00013698,2]
[426399233,1782348640000,-500.0,0.00013698,2]
[426399228,1782348640000,-500.0,0.00013698,2]
[426399258,1782348640000,-551.62922069,0.00013698,2]
[426399234,1782348640000,-500.0,0.00013698,2]
[426399226,1782348640000,-500.0,0.00013698,2]
[426399237,1782348640000,-500.0,0.00013698,2]
[426399235,1782348640000,-500.0,0.00013698,2]
[426399238,1782348640000,-500.0,0.00013698,2]
[426399232,1782348640000,-500.0,0.00013698,2]
[426399245,1782348640000,-500.0,0.00013698,2]
[426399244,1782348640000,-500.0,0.00013698,2]
[426399249,1782348640000,-500.0,0.00013698,2]
[426399250,1782348640000,-293.67,0.00013698,2]
[426399252,1782348640000,-500.0,0.00013698,2]
[426399248,1782348640000,-500.0,0.00013698,2]
[426399247,1782348640000,-500.0,0.00013698,2]
[426399251,1782348640000,-500.0,0.00013698,2]
[426399239,1782348640000,-500.0,0.00013698,2]
[426399246,1782348640000,-500.0,0.00013698,2]
[426399241,1782348640000,-500.0,0.00013698,2]
[426399240,1782348640000,-500.0,0.00013698,2]
[426399243,1782348640000,-500.0,0.00013698,2]
[426399242,1782348640000,-500.0,0.00013698,2]
[426399324,1782348641000,-520.11,0.00013698,2]
[426399320,1782348641000,-500.0,0.00013698,2]
[426399327,1782348641000,-520.11,0.00013698,2]
[426399326,1782348641000,-520.11,0.00013698,2]
[426399319,1782348641000,-500.0,0.00013698,2]
[426399318,1782348641000,-500.0,0.00013698,2]
[426399322,1782348641000,-176.01433661,0.00013698,2]
[426399317,1782348641000,-500.0,0.00013698,2]
[426399315,1782348641000,-500.0,0.00013698,2]
[426399314,1782348641000,-500.0,0.00013698,2]
[426399321,1782348641000,-500.0,0.00013698,2]
[426399323,1782348641000,-520.11,0.00013698,2]
[426399340,1782348641000,-520.11,0.00013698,2]
[426399325,1782348641000,-520.11,0.00013698,2]
[426399329,1782348641000,-520.11,0.00013698,2]
[426399332,1782348641000,-520.11,0.00013698,2]
[426399330,1782348641000,-520.11,0.00013698,2]
[426399334,1782348641000,-520.11,0.00013698,2]
[426399333,1782348641000,-520.11,0.00013698,2]
[426399335,1782348641000,-520.11,0.00013698,2]
[426399331,1782348641000,-520.11,0.00013698,2]
[426399337,1782348641000,-520.11,0.00013698,2]
[426399336,1782348641000,-520.11,0.00013698,2]
[426399338,1782348641000,-520.11,0.00013698,2]
[426399339,1782348641000,-520.11,0.00013698,2]
[426399316,1782348641000,-500.0,0.00013698,2]
[426399328,1782348641000,-520.11,0.00013698,2]
[426399312,1782348641000,-500.0,0.00013698,2]
[426399299,1782348641000,-500.0,0.00013698,2]
[426399311,1782348641000,-500.0,0.00013698,2]
[426399341,1782348641000,-520.11,0.00013698,2]
[426399284,1782348641000,-500.0,0.00013698,2]
[426399287,1782348641000,-500.0,0.00013698,2]
[426399286,1782348641000,-500.0,0.00013698,2]
[426399288,1782348641000,-500.0,0.00013698,2]
[426399294,1782348641000,-500.0,0.00013698,2]
[426399289,1782348641000,-500.0,0.00013698,2]
[426399291,1782348641000,-500.0,0.00013698,2]
[426399290,1782348641000,-500.0,0.00013698,2]
[426399293,1782348641000,-207.02,0.00013698,2]
[426399292,1782348641000,-500.0,0.00013698,2]
[426399295,1782348641000,-500.0,0.00013698,2]
[426399309,1782348641000,-513.71447224,0.00013698,2]
[426399296,1782348641000,-500.0,0.00013698,2]
[426399297,1782348641000,-500.0,0.00013698,2]
[426399300,1782348641000,-500.0,0.00013698,2]
[426399301,1782348641000,-500.0,0.00013698,2]
[426399305,1782348641000,-500.0,0.00013698,2]
[426399302,1782348641000,-500.0,0.00013698,2]
[426399304,1782348641000,-500.0,0.00013698,2]
[426399303,1782348641000,-500.0,0.00013698,2]
[426399306,1782348641000,-500.0,0.00013698,2]
[426399308,1782348641000,-500.0,0.00013698,2]
[426399307,1782348641000,-500.0,0.00013698,2]
[426399313,1782348641000,-500.0,0.00013698,2]
[426399310,1782348641000,-500.0,0.00013698,2]
[426399298,1782348641000,-500.0,0.00013698,2]
[426399342,1782348641000,-500.0,0.00013698,2]
[426399285,1782348641000,-500.0,0.00013698,2]
[426399343,1782348641000,-500.0,0.00013698,2]
[426399373,1782348641000,-500.0,0.00013698,2]
[426399377,1782348641000,-500.0,0.00013698,2]
[426399375,1782348641000,-500.0,0.00013698,2]
[426399379,1782348641000,-500.0,0.00013698,2]
[426399380,1782348641000,-500.0,0.00013698,2]
[426399382,1782348641000,-1857.37,0.00013698,2]
[426399391,1782348641000,-1857.37,0.00013698,2]
[426399381,1782348641000,-213.23061477,0.00013698,2]
[426399385,1782348641000,-2327.39,0.00013698,2]
[426399390,1782348641000,-2327.39,0.00013698,2]
[426399383,1782348641000,-1857.37,0.00013698,2]
[426399384,1782348641000,-1857.37,0.00013698,2]
[426399372,1782348641000,-500.0,0.00013698,2]
[426399387,1782348641000,-1857.37,0.00013698,2]
[426399388,1782348641000,-2327.39,0.00013698,2]
[426399389,1782348641000,-2327.39,0.00013698,2]
[426399392,1782348641000,-2327.39,0.00013698,2]
[426399393,1782348641000,-1857.37,0.00013698,2]
[426399400,1782348641000,-2327.39,0.00013698,2]
[426399396,1782348641000,-2327.39,0.00013698,2]
[426399401,1782348641000,-1857.37,0.00013698,2]
[426399398,1782348641000,-2327.39,0.00013698,2]
[426399394,1782348641000,-2327.39,0.00013698,2]
[426399397,1782348641000,-1857.37,0.00013698,2]
[426399399,1782348641000,-1857.37,0.00013698,2]
[426399344,1782348641000,-500.0,0.00013698,2]
[426399386,1782348641000,-2327.39,0.00013698,2]
[426399376,1782348641000,-500.0,0.00013698,2]